Cogmind - Beta 13 @@@ ROGUE MODE // 2024.05.24 @ 16:00:08 Player: Don Result: Self-destructed Performance ------------- Evolutions (6) 3000 Regions Visited (12) 2400 Robots Destroyed (79) 395 Value Destroyed (3009) 3009 Prototype IDs (0) 0 Alien Tech Used (0) 0 Bonus (346) 346 TOTAL SCORE: 9150 Bonus ------- Follower Combat Kills 346 Cogmind --------- Core Integrity 856/1150 Matter 201/300 Energy 150/150 System Corruption 14% Temperature Cool (0) Movement Treading (170) Location -4/Factory Parts ------- > --- POWER (4) -------- Micro Fission Core > --- PROPULSION (4) --- Armored Medium Treads Armored Medium Treads > --- UTILITY (8) ------ Coolant Injector Coolant Injector Large Storage Unit Advanced Signal Interpreter Improved Target Analyzer Graphene Brace > --- WEAPON (3) ------- Improved Remote Datajack > --- INVENTORY (15) --- Antimatter Reactor Myomer Leg Improved Coolant Injector Graphene Brace Advanced Thermal Shield Advanced Field Recycling Unit (0) Heavy Mass Driver Improved Plasma Cutter Peak State ------------ > --- POWER ------------ Micro Fission Core Micro Fission Core Antimatter Reactor Improved Fusion Compressor > --- PROPULSION ------- Improved Medium Treads Heavy Treads Improved Carbon-fiber Leg > --- UTILITY ---------- Power Amplifier Advanced Cooling System Coolant Injector Large Storage Unit Advanced Sensor Array Improved Target Analyzer Graphene Brace Advanced Shield Generator > --- WEAPON ----------- Phase Gun Advanced Plasma Cannon Hypervelocity Coil Gun > --- INVENTORY -------- Micro Fission Core Improved Fusion Compressor Myomer Leg Coolant Injector Improved Coolant Injector Graphene Brace Advanced Thermal Shield Advanced Shield Generator Advanced Field Recycling Unit High-powered Shock Rifle Tesla Rifle Heavy Flak Cannon Improved Remote Datajack Improved Plasma Cutter [Rating: 113] Favorites ----------- Power Nuclear Core Engine Ion Engine Power Core Nuclear Core Reactor Antimatter Reactor Propulsion Heavy Treads Treads Heavy Treads Leg Aluminum Leg Utility Large Storage Unit Device Improved Heat Sink Storage Large Storage Unit Processor Visual Processing Unit Protection Improved Medium Armor Plating Weapon Plasma Rifle Energy Gun Plasma Rifle Energy Cannon Heavy Plasma Cannon Ballistic Gun Hypervelocity Coil Gun Ballistic Cannon Mass Driver Special Weapon Improved Plasma Cutter Build | -11 -10 -9 -9 -8 -8 -7 -6 -5 -5 -5 -4 -4 ------- Run | Yrd Mat Mat Min Mat Sto Fac Fac Fac Upp War Pro Fac Slots Evolved 12 | . . 2 . 2 . 2 2 2 . . . 2 Power 3 | . . . . . . . . 1 . . . 2 Propulsion 2 | . . 1 . . . . . 1 . . . . Utility 6 | . . 1 . 2 . 1 2 . . . . . Weapon 1 | . . . . . . 1 . . . . . . Parts Attached 119 | 6 6 7 3 10 1 4 5 27 2 . 7 41 Power 16 | 1 1 . . 1 . 1 . 4 . . 2 6 Engine 3 | 1 1 . . 1 . . . . . . . . Core 12 | . . . . . . 1 . 4 . . 2 5 Reactor 1 | . . . . . . . . . . . . 1 Propulsion 22 | 2 . 5 3 2 . . . 5 . . . 5 Treads 17 | . . 5 2 2 . . . 4 . . . 4 Leg 5 | 2 . . 1 . . . . 1 . . . 1 Wheel . | . . . . . . . . . . . . . Hover . | . . . . . . . . . . . . . Flight . | . . . . . . . . . . . . . Utility 51 | 1 3 2 . 5 1 2 4 12 . . 3 18 Device 29 | . . . . 2 . . 3 10 . . 1 13 Storage 5 | 1 2 1 . . . . . . . . . 1 Processor 5 | . 1 1 . . . . 1 . . . . 2 Hackware . | . . . . . . . . . . . . . Protection 12 | . . . . 3 1 2 . 2 . . 2 2 Artifact . | . . . . . . . . . . . . . Weapon 30 | 2 2 . . 2 . 1 1 6 2 . 2 12 Energy Gun 15 | 1 2 . . 2 . . 1 1 2 . . 6 Energy Cannon 2 | . . . . . . . . 1 . . . 1 Ballistic Gun 2 | 1 . . . . . . . . . . . 1 Ballistic Cannon 8 | . . . . . . 1 . 3 . . 2 2 Launcher . | . . . . . . . . . . . . . Special Weapon 3 | . . . . . . . . 1 . . . 2 Impact Weapon . | . . . . . . . . . . . . . Slashing Weapon . | . . . . . . . . . . . . . Piercing Weapon . | . . . . . . . . . . . . . Special Melee Weapon . | . . . . . . . . . . . . . Unidentified Prototypes . | . . . . . . . . . . . . . Parts Lost 31 | . . . . 4 . . . 1 . . 3 23 Power 6 | . . . . . . . . . . . 1 5 Propulsion 7 | . . . . 1 . . . 1 . . . 5 Utility 8 | . . . . 2 . . . . . . . 6 Weapon 10 | . . . . 1 . . . . . . 2 7 Highest Loss Streak 17 | . . . . 4 . . . 1 . . 1 17 To Critical Strikes . | . . . . . . . . . . . . . Average Slot Usage (%) 92 | . 98 97 100 99 100 100 100 98 87 88 87 86 Engine 2 | . 14 11 11 9 9 7 . . . . . . Core 9 | . . . . . . . 6 11 11 11 10 17 Treads 15 | . . 25 32 26 27 23 20 21 11 11 11 9 Leg 2 | . 28 4 . . . . . . . . . 1 Device 24 | . . . . 2 9 7 18 29 35 35 34 29 Storage 6 | . 14 11 11 9 9 7 6 5 5 5 5 5 Processor 5 | . 12 22 22 18 18 15 14 . . . . 4 Protection 6 | . . . . 16 9 15 13 9 5 5 5 1 Energy Gun 9 | . 14 22 22 18 18 15 13 8 16 17 7 5 Ballistic Gun 1 | . 12 . . . . . . . . . . 1 Ballistic Cannon 4 | . . . . . . 7 6 4 . . 8 5 Naked Turns . | . . . . . . . . . . . . . Heaviest Build 94 | 12 21 31 31 37 41 56 60 81 66 61 78 94 Greatest Support 140 | 20 20 66 66 65 65 65 65 140 140 140 140 140 Greatest Overweight (x) 3 | 3 1 1 1 . . . . . . . . 1 Average Overweight (x) . | 1 . . . . . . . . . . . . Largest Inventory Capacity 15 | 8 10 15 15 15 15 15 15 15 15 15 15 15 Average Capacity 14 | 7 8 11 15 15 15 15 15 15 15 15 15 15 Most Carried 15 | 8 10 15 15 15 15 15 15 15 15 15 15 15 Average Carried 13 | 5 7 10 14 14 14 14 14 14 15 15 13 13 Final Capacity 15 | 8 10 15 15 15 15 15 15 15 15 15 15 15 Final Carried 15 | 6 10 15 15 14 15 15 15 15 15 15 13 9 Class Distribution -------------------- 46% | Tank 22% | Mutant 13% | Scavenger-Tank 5% | Gunner 3% | Generator-Tank 3% | Skirmisher Dominant Class ---------------- Mutant | -10/Materials Mutant | -9/Materials Mutant | -9/Mines Mutant | -8/Materials Mutant | -8/Storage Tank | -7/Factory Skirmisher | -6/Factory Tank | -5/Factory Scavenger-Tank | -5/Upper Caves Scavenger-Tank | -5/Warlord Tank | -4/Proximity Caves Tank | -4/Factory Resources | -11 -10 -9 -9 -8 -8 -7 -6 -5 -5 -5 -4 -4 ----------- Run | Yrd Mat Mat Min Mat Sto Fac Fac Fac Upp War Pro Fac Matter Collected 2414 | 234 85 55 85 147 10 . . 587 . . 274 937 Remotely . | . . . . . . . . . . . . . Salvage Created 2956 | . 118 55 180 272 . . . 811 . . 303 1217 Parts 161 | . 14 5 7 9 . . . 44 . . 18 64 Haulers Intercepted . | . . . . . . . . . . . . . Recyclers Shooed 3 | . . . . . . . . . . . . 3 Parts Field Recycled 11 | . . . . . . . . . . . . 11 Retrieved Matter 216 | . . . . . . . . . . . . 216 Parts Self-Destructed 15 | . . . . . . . . . . . 15 . Prevented 2 | . . . . . . . . . . . 2 . Kills | -11 -10 -9 -9 -8 -8 -7 -6 -5 -5 -5 -4 -4 ------- Run | Yrd Mat Mat Min Mat Sto Fac Fac Fac Upp War Pro Fac Combat Hostiles Destroyed 65 | . 6 1 3 5 . . . 16 . . 13 21 Guns 45 | . 6 1 3 4 . . . 9 . . 9 13 Cannons 19 | . . . . . . . . 7 . . 4 8 Classes Destroyed 12 | . 2 1 2 2 . . . 4 . . . 1 Worker 3 | . . . . . . . . 1 . . . 2 Builder 1 | . . . . . . . . 1 . . . . Recycler 5 | . . . 1 1 . . . . . . . 3 Operator 2 | . . . . . . . . 1 . . . 1 Watcher 3 | . 1 . . . . . . 1 . . . 1 Swarmer 31 | . 6 . . . . . . 4 . . 12 9 Grunt 12 | . . . 3 2 . . . 7 . . . . Duelist 1 | . . . . 1 . . . . . . . . Sentry 4 | . . 1 . 1 . . . 1 . . 1 . Hunter 3 | . . . . 1 . . . . . . . 2 Programmer 13 | . . . . . . . . 4 . . . 9 Heavy 1 | . . . . . . . . . . . . 1 Best Kill Streak 6 | . 3 1 4 5 . . . 4 . . 5 6 Combat Bots Only 5 | . 3 1 3 4 . . . 4 . . 5 5 Max Kills in Single Turn 2 | . 2 1 1 2 . . . 1 . . 1 2 Gunslinging 1 | . 1 . . . . . . . . . . . Exploded . | . . . . . . . . . . . . . Melee . | . . . . . . . . . . . . . Uniques/NPCs Destroyed . | . . . . . . . . . . . . . Combat | -11 -10 -9 -9 -8 -8 -7 -6 -5 -5 -5 -4 -4 -------- Run | Yrd Mat Mat Min Mat Sto Fac Fac Fac Upp War Pro Fac Hostile Shots Fired 608 | . 19 4 22 42 4 . . 65 . . 103 349 Missed 161 | . 4 1 4 6 3 . . 14 . . 29 100 Damage Taken 7259 | . 119 47 244 646 14 . . 1023 . . 1172 3994 Core 457 | . 12 . 14 96 . . . 27 . . 14 294 Absorbed by Shields 717 | . . . . . . . . . . . . 717 Redirected to Shielding 4 | . . . . 4 . . . . . . . . Ignored by Resistances 310 | . . . . . . . . 109 . . 105 96 Core Remaining (%) 95 | 100 95 . 96 . 82 100 100 . . . 95 . Volleys Fired 183 | . 13 4 12 19 1 . . 44 . . 20 70 Largest 3 | . 2 2 2 2 2 . . 3 . . 3 3 Hottest 230 | . 70 130 130 130 126 . . 230 . . 205 221 Shots Fired 474 | . 26 8 24 37 2 . . 132 . . 61 184 Gun 311 | . 26 8 24 37 2 . . 76 . . 36 102 Cannon 160 | . . . . . . . . 56 . . 25 79 Launcher . | . . . . . . . . . . . . . Special 3 | . . . . . . . . . . . . 3 Kinetic 163 | . 13 . . . . . . 32 . . 25 93 Thermal 255 | . 13 8 24 37 2 . . 88 . . 20 63 Explosive . | . . . . . . . . . . . . . Electromagnetic 53 | . . . . . . . . 12 . . 16 25 Robot Hit Streak 13 | . 6 4 6 11 7 . . 11 . . 13 13 Robot Miss Streak 4 | . 2 4 1 2 . . . 3 . . 4 4 Penetration Max 1 | . . . . . . . . . . . . 1 Secondary Targets 3 | . 1 . . 1 . . . . . . 1 . Max Gunslinging Chain 1 | . 1 . . 1 . . . . . . 1 . Shots Hit Robots 286 | . 13 4 16 29 2 . . 84 . . 28 110 Core Hits 140 | . 7 2 8 12 1 . . 37 . . 15 58 Critical Kills 2 | . . . . . . . . . . . . 2 Critical Parts Destroyed 4 | . . . . . . . . . . . . 4 Critical Strikes 24 | . 1 . . 1 . . . 6 . . 2 14 Burn 13 | . 1 . . 1 . . . 5 . . 2 4 Destroy 6 | . . . . . . . . . . . . 6 Blast 4 | . . . . . . . . 1 . . . 3 Corrupt 1 | . . . . . . . . . . . . 1 Melee Attacks . | . . . . . . . . . . . . . Impact . | . . . . . . . . . . . . . Slashing . | . . . . . . . . . . . . . Piercing . | . . . . . . . . . . . . . Sneak Attacks . | . . . . . . . . . . . . . Combat Hostiles . | . . . . . . . . . . . . . Follow-up Attacks . | . . . . . . . . . . . . . Damage Inflicted 7831 | . 166 60 242 473 34 . . 2269 . . 847 3740 Guns 3837 | . 166 60 242 473 34 . . 1080 . . 394 1388 Cannons 3457 | . . . . . . . . 1189 . . 453 1815 Explosions 508 | . . . . . . . . . . . . 508 Melee . | . . . . . . . . . . . . . Ramming 29 | . . . . . . . . . . . . 29 Kinetic 2736 | . 78 . . . . . . 667 . . 453 1538 Thermal 4047 | . 88 60 242 473 34 . . 1521 . . 245 1384 Explosive 458 | . . . . . . . . . . . . 458 Electromagnetic 561 | . . . . . . . . 81 . . 149 331 Impact . | . . . . . . . . . . . . . Slashing . | . . . . . . . . . . . . . Piercing . | . . . . . . . . . . . . . Highest Corruption 14 | . . . . . . . . 2 2 2 2 14 Average Corruption 4 | . . . . . . . . 1 2 2 2 10 Corruption Purged . | . . . . . . . . . . . . . Corruption Blocked . | . . . . . . . . . . . . . Effects 81 | . . . . . . . . 4 1 3 23 50 Message Errors 23 | . . . . . . . . 1 1 . 8 13 Matter Fused 20 | . . . . . . . . 2 . 1 5 12 Heat Flow Errors 6 | . . . . . . . . 1 . . 3 2 Energy Discharges 10 | . . . . . . . . . . . 4 6 Parts Rejected 1 | . . . . . . . . . . . . 1 Parts Fused 1 | . . . . . . . . . . . . 1 Data Loss (minor) 6 | . . . . . . . . . . . 2 4 Data Loss (major) 6 | . . . . . . . . . . 2 . 4 Misfires 3 | . . . . . . . . . . . 1 2 Alerts 1 | . . . . . . . . . . . . 1 Weapon Failures 4 | . . . . . . . . . . . . 4 Overload Shots . | . . . . . . . . . . . . . Overflow Damage 146 | . . . . . . . . 22 . . 4 120 Projectiles 128 | . . . . . . . . 22 . . 4 102 Explosions 18 | . . . . . . . . . . . . 18 Melee . | . . . . . . . . . . . . . Knockbacks 43 | . . . . . . . . 12 . . 3 28 Impact 1 | . . . . . . . . . . . . 1 Kinetic 42 | . . . . . . . . 12 . . 3 27 Secondary . | . . . . . . . . . . . . . Self-Inflicted Damage 210 | . . . . . . . . . . . . 210 Shots 4 | . . . . . . . . . . . . 4 Rammed 1 | . . . . . . . . . . . . 1 Targets Rammed 1 | . . . . . . . . . . . . 1 Kicked . | . . . . . . . . . . . . . Crushed . | . . . . . . . . . . . . . Highest Temperature 594 | . 54 249 467 594 9 . . 227 . . 154 199 Average Temperature 108 | . 20 127 238 258 6 . . 39 . . 24 80 Received Heat Transfer 852 | . . 9 138 189 9 . . 204 . . 81 222 Effects 16 | . . . 5 11 . . . . . . . . Shutdowns 5 | . . . 2 3 . . . . . . . . Interference 3 | . . . . 3 . . . . . . . . Matter Decay 2 | . . . . 2 . . . . . . . . Short Circuit 2 | . . . 2 . . . . . . . . . Damage (minor) 2 | . . . . 2 . . . . . . . . Damage (major) 2 | . . . 1 1 . . . . . . . . Siege Activations . | . . . . . . . . . . . . . Robots Corrupted . | . . . . . . . . . . . . . Combat Hostiles . | . . . . . . . . . . . . . Parts Fried . | . . . . . . . . . . . . . Impact Corruptions . | . . . . . . . . . . . . . Robots Melted 2 | . . . . 1 . . . 1 . . . . Combat Hostiles 1 | . . . . 1 . . . . . . . . Parts Melted 14 | . . . . 2 . . . 9 . . . 3 Heat Transferred 8744 | . 333 148 592 1184 74 . . 3364 . . 750 2299 Parts Sabotaged . | . . . . . . . . . . . . . Parts Stolen . | . . . . . . . . . . . . . Parts Stripped . | . . . . . . . . . . . . . Power Chain Reactions 1 | . . . . . . . . . . . . 1 Alert | -11 -10 -9 -9 -8 -8 -7 -6 -5 -5 -5 -4 -4 ------- Run | Yrd Mat Mat Min Mat Sto Fac Fac Fac Upp War Pro Fac Peak Influence 471 | . 209 132 126 174 471 214 94 275 . . . 392 Initial 214 | . . 87 51 48 73 214 94 . . . . 16 Average 131 | . 111 103 76 74 307 198 85 100 . . . 160 Maximum Alert Level 2 | . 1 . . . 2 1 . 1 . . . 1 Low Security (%) 75 | 100 66 100 100 100 31 75 100 81 . . . 62 Level 1 21 | . 33 . . . 23 24 . 18 . . . 37 Level 2 2 | . . . . . 44 . . . . . . . Level 3 . | . . . . . . . . . . . . . Level 4 . | . . . . . . . . . . . . . Level 5 . | . . . . . . . . . . . . . High Security . | . . . . . . . . . . . . . Max Security . | . . . . . . . . . . . . . Squads Dispatched 20 | . 1 . . 5 4 . . 5 . . . 5 Investigation . | . . . . . . . . . . . . . Extermination 5 | . . . . . . . . 2 . . . 3 Reinforcement 9 | . 1 . . 2 1 . . 3 . . . 2 Assault . | . . . . . . . . . . . . . Garrison 6 | . . . . 3 3 . . . . . . . Intercept . | . . . . . . . . . . . . . Searches Triggered . | . . . . . . . . . . . . . Construction Impeded . | . . . . . . . . . . . . . Haulers Reinforced 1 | . . . . . . . . 1 . . . . Active Scanning Responses . | . . . . . . . . . . . . . Cargo Convoy Interrupts . | . . . . . . . . . . . . . Stealth | -11 -10 -9 -9 -8 -8 -7 -6 -5 -5 -5 -4 -4 --------- Run | Yrd Mat Mat Min Mat Sto Fac Fac Fac Upp War Pro Fac Distress Signals 9 | . . 1 . 3 2 . . 1 . . . 2 Communications Jammed . | . . . . . . . . . . . . . Distress Signals . | . . . . . . . . . . . . . Times Spotted 129 | . 11 2 3 9 14 . . 33 . . 14 43 Peak Tracking Total 7 | . 4 2 3 5 6 . . 5 . . 5 7 Tactical Retreats 7 | . . . . . 1 . . 2 . . . 4 Traps | -11 -10 -9 -9 -8 -8 -7 -6 -5 -5 -5 -4 -4 ------- Run | Yrd Mat Mat Min Mat Sto Fac Fac Fac Upp War Pro Fac Traps Triggered 1 | . . . . . . . . 1 . . . . Indirectly . | . . . . . . . . . . . . . Trap Hack Attempts . | . . . . . . . . . . . . . Triggered . | . . . . . . . . . . . . . Disarmed . | . . . . . . . . . . . . . Reprogrammed . | . . . . . . . . . . . . . Reused . | . . . . . . . . . . . . . Traps Extracted . | . . . . . . . . . . . . . Installed . | . . . . . . . . . . . . . Triggered . | . . . . . . . . . . . . . Machines | -11 -10 -9 -9 -8 -8 -7 -6 -5 -5 -5 -4 -4 ---------- Run | Yrd Mat Mat Min Mat Sto Fac Fac Fac Upp War Pro Fac Machines Disabled 6 | . . . . . 1 . . 1 . . . 4 Max in Single Turn 2 | . . . . . . . . 1 . . . 2 Machines Repaired . | . . . . . . . . . . . . . Machines Dismantled 1 | . . . . . . . . 1 . . . . Machines Sabotaged . | . . . . . . . . . . . . . Overloaded Fab Kills . | . . . . . . . . . . . . . Hacking | -11 -10 -9 -9 -8 -8 -7 -6 -5 -5 -5 -4 -4 --------- Run | Yrd Mat Mat Min Mat Sto Fac Fac Fac Upp War Pro Fac Machines Accessed 5 | . 1 . . 2 . . . 1 . . . 1 Terminals 5 | . 1 . . 2 . . . 1 . . . 1 Fabricators . | . . . . . . . . . . . . . Repair Stations . | . . . . . . . . . . . . . Recycling Units . | . . . . . . . . . . . . . Scanalyzers . | . . . . . . . . . . . . . Garrison Access . | . . . . . . . . . . . . . Total Hacks 7 | . 1 . . 4 . . . 1 . . . 1 Successful 3 | . 1 . . 2 . . . . . . . . Failed 4 | . . . . 2 . . . 1 . . . 1 Catastrophic . | . . . . . . . . . . . . . Database Lockouts . | . . . . . . . . . . . . . Manual . | . . . . . . . . . . . . . Terminals 7 | . 1 . . 4 . . . 1 . . . 1 Fabricators . | . . . . . . . . . . . . . Repair Stations . | . . . . . . . . . . . . . Recycling Units . | . . . . . . . . . . . . . Scanalyzers . | . . . . . . . . . . . . . Garrison Access . | . . . . . . . . . . . . . Terminal Hacks 3 | . 1 . . 2 . . . . . . . . Dispatch Records 1 | . . . . 1 . . . . . . . . Investigation Status 1 | . 1 . . . . . . . . . . . Zone Layout 1 | . . . . 1 . . . . . . . . Fabricator Hacks . | . . . . . . . . . . . . . Repair Station Hacks . | . . . . . . . . . . . . . Recycling Unit Hacks . | . . . . . . . . . . . . . Scanalyzer . | . . . . . . . . . . . . . Garrison Access Hacks . | . . . . . . . . . . . . . Unauthorized Hacks . | . . . . . . . . . . . . . Terminals . | . . . . . . . . . . . . . Fabricators . | . . . . . . . . . . . . . Repair Stations . | . . . . . . . . . . . . . Recycling Units . | . . . . . . . . . . . . . Scanalyzers . | . . . . . . . . . . . . . Garrison Access . | . . . . . . . . . . . . . Data Cores Recovered 2 | . . . . . . . . 1 . . . 1 Used . | . . . . . . . . . . . . . Hacking Detections 4 | . . . . 2 . . . 1 . . . 1 Full Trace Events . | . . . . . . . . . . . . . Feedback Events . | . . . . . . . . . . . . . Feedback Blocked . | . . . . . . . . . . . . . Robot Schematics Acquired . | . . . . . . . . . . . . . Robots Built . | . . . . . . . . . . . . . Authchips . | . . . . . . . . . . . . . Time . | . . . . . . . . . . . . . Total Robot Build Rating . | . . . . . . . . . . . . . Part Schematics Acquired . | . . . . . . . . . . . . . Parts Built . | . . . . . . . . . . . . . Authchips . | . . . . . . . . . . . . . Time . | . . . . . . . . . . . . . Total Part Build Rating . | . . . . . . . . . . . . . Parts Repaired . | . . . . . . . . . . . . . Time . | . . . . . . . . . . . . . Parts Recycled . | . . . . . . . . . . . . . Recycled Matter . | . . . . . . . . . . . . . Retrieved Matter . | . . . . . . . . . . . . . Retrieved Components . | . . . . . . . . . . . . . Parts Scanalyzed . | . . . . . . . . . . . . . Part Schematics Acquired . | . . . . . . . . . . . . . Parts Damaged . | . . . . . . . . . . . . . Bothacking | -11 -10 -9 -9 -8 -8 -7 -6 -5 -5 -5 -4 -4 ------------ Run | Yrd Mat Mat Min Mat Sto Fac Fac Fac Upp War Pro Fac Used RIF Installer . | . . . . . . . . . . . . . Robots Hacked 1 | . . . . . . . . . . . . 1 Non-combat . | . . . . . . . . . . . . . Combat 1 | . . . . . . . . . . . . 1 Robot Hacks Applied 1 | . . . . . . . . . . . . 1 parse_system 1 | . . . . . . . . . . . . 1 Relay Couplers Released . | . . . . . . . . . . . . . Fabnet Peak Effective % . | . . . . . . . . . . . . . Robots Rewired . | . . . . . . . . . . . . . Allies Hacked . | . . . . . . . . . . . . . Hacks Repelled . | . . . . . . . . . . . . . Allies | -11 -10 -9 -9 -8 -8 -7 -6 -5 -5 -5 -4 -4 -------- Run | Yrd Mat Mat Min Mat Sto Fac Fac Fac Upp War Pro Fac Total Allies 3 | . . . . . 3 . . . . . . . Largest Group 2 | . . . . . 2 2 . . . . . . Highest-Rated Group 115 | . . . . . 115 115 . . . . . . Highest-Rated Ally 100 | . . . . . 100 100 . . . . . . Total Orders . | . . . . . . . . . . . . . Ally Attacks 30 | . . . . . 29 1 . . . . . . Total Damage 1191 | . . . . . 1164 27 . . . . . . Kills 14 | . . . . . 14 . . . . . . . Allies Corrupted . | . . . . . . . . . . . . . Allies Melted . | . . . . . . . . . . . . . Intel | -11 -10 -9 -9 -8 -8 -7 -6 -5 -5 -5 -4 -4 ------- Run | Yrd Mat Mat Min Mat Sto Fac Fac Fac Upp War Pro Fac Robot Analysis Total . | . . . . . . . . . . . . . Derelict Logs Recovered 2 | . . . . . . . . . . . 2 . Drone Launches . | . . . . . . . . . . . . . Drone Recoveries . | . . . . . . . . . . . . . Exploration | -11 -10 -9 -9 -8 -8 -7 -6 -5 -5 -5 -4 -4 ------------- Run | Yrd Mat Mat Min Mat Sto Fac Fac Fac Upp War Pro Fac Turns Passed 7027 | 81 378 149 156 362 326 191 437 1409 66 154 1732 1586 Spaces Moved 3783 | 42 235 71 70 177 193 116 272 668 40 97 1030 772 Core 35 | 35 . . . . . . . . . . . . Treads 3506 | . . 71 70 177 193 116 272 668 40 97 1030 772 Legs 242 | 7 235 . . . . . . . . . . . Wheels . | . . . . . . . . . . . . . Hover . | . . . . . . . . . . . . . Flight . | . . . . . . . . . . . . . Fastest Speed 50 | 50 120 145 145 150 155 155 155 156 160 160 160 160 Average Speed 155 | 150 122 157 147 150 155 155 155 156 160 160 160 161 Slowest Speed 240 | 200 190 225 225 160 155 155 155 160 160 160 160 240 Overloaded Moves . | . . . . . . . . . . . . . Propulsion Burnouts . | . . . . . . . . . . . . . Robots Hopped . | . . . . . . . . . . . . . Cave-ins Triggered . | . . . . . . . . . . . . . Exploration Rate (%) 23 | 3 50 8 14 18 43 5 12 20 10 13 90 18 Regions Visited 12 Branch Regions 5 Pre-discovered Areas 3 | . . . 1 . 1 . . . . . 1 . Known Exits Taken . | . . . . . . . . . . . . . Unknown Exits Taken 12 | 1 1 1 1 1 1 1 1 1 1 1 1 . Scrap Searched 2 | . . . 1 . . . . . 1 . . . Spaces Dug . | . . . . . . . . . . . . . Terrain Destroyed 118 | . . . . . . . . 18 . . 21 79 Melee . | . . . . . . . . . . . . . Projectile 67 | . . . . . . . . 18 . . 21 28 AOE 51 | . . . . . . . . . . . . 51 Terrain Rammed . | . . . . . . . . . . . . . Walls Destroyed . | . . . . . . . . . . . . . Machines Disabled . | . . . . . . . . . . . . . Actions | -11 -10 -9 -9 -8 -8 -7 -6 -5 -5 -5 -4 -4 --------- Run | Yrd Mat Mat Min Mat Sto Fac Fac Fac Upp War Pro Fac Total 4534 | 59 301 101 98 236 220 128 288 932 42 96 1068 965 Wait 270 | . 30 1 11 17 15 1 2 146 . . 9 38 Move 3771 | 41 234 70 69 176 192 115 271 667 39 96 1029 772 Hop . | . . . . . . . . . . . . . Pick Up 102 | 12 10 12 1 10 6 4 5 16 . . 2 24 Fast Attach 23 | . 2 2 1 . . 2 2 6 1 . . 7 Attach 56 | 6 2 3 1 8 . 2 2 6 . . 4 22 Detach 5 | . . . . . . . . 3 . . . 2 Swap 40 | . 2 2 1 2 1 . 1 15 1 . 3 12 Drop 79 | . 8 7 2 4 5 4 5 25 1 . 1 17 Fire 183 | . 13 4 12 19 1 . . 44 . . 20 70 Melee . | . . . . . . . . . . . . . Ram . | . . . . . . . . . . . . . Kick . | . . . . . . . . . . . . . Crush 1 | . . . . . . . . . . . . 1 Escape Stasis . | . . . . . . . . . . . . . Rewire . | . . . . . . . . . . . . . Trap . | . . . . . . . . . . . . . Miscellaneous 4 | . . . . . . . . 4 . . . . Route ------- -11/Scrapyard -10/Materials -9/Materials -9/Mines -8/Materials -8/Storage -7/Factory -6/Factory -5/Factory -5/Upper Caves -5/Warlord -4/Proximity Caves -4/Factory History --------- Turn | Location | Event 2 | -11/Scrapyard | Met Revision 17 14 | -11/Scrapyard | Discovered new exit (range 16) 82 | -11/Scrapyard | Entered Materials 316 | -10/Materials | Build established: Mutant 424 | -10/Materials | Discovered new exit (range 16) 460 | -10/Materials | Entered another Materials area 460 | -9/Materials | Evolved 2 slots: Propulsion x1, Utility x1 518 | -9/Materials | Discovered new exit (range 17) 609 | -9/Materials | Entered Mines 611 | -9/Mines | Met a Derelict bent on vengeance 631 | -9/Mines | Learned location of Storage (-8) 754 | -9/Mines | Discovered new exit (range 10) 765 | -9/Mines | Entered Materials 765 | -8/Materials | Evolved 2 slots: Utility x2 845 | -8/Materials | Garrison activated, responded to threat 982 | -8/Materials | Discovered new exit (range 19) 1114 | -8/Materials | Lost 4 parts (1n2u1w) 1127 | -8/Materials | Entered Storage 1141 | -8/Storage | Met 01-MTF 1247 | -8/Storage | Garrison activated, responded to threat 1329 | -8/Storage | Learned location of Armory (-4) 1442 | -8/Storage | Discovered new exit (range 8) 1453 | -8/Storage | Entered Factory 1453 | -7/Factory | Accompanied by 2 allies (01-MTF) 1453 | -7/Factory | Evolved 2 slots: Utility x1, Weapon x1 1458 | -7/Factory | 01-MTF left 1617 | -7/Factory | Discovered new exit (range 16) 1644 | -7/Factory | Entered another Factory area 1644 | -6/Factory | Evolved 2 slots: Utility x2 2063 | -6/Factory | Discovered new exit (range 8) 2081 | -6/Factory | Entered another Factory area 2081 | -5/Factory | Evolved 2 slots: Power x1, Propulsion x1 2818 | -5/Factory | Build established: Tank 3429 | -5/Factory | Discovered new exit (range 15) 3490 | -5/Factory | Entered Upper Caves 3543 | -5/Upper Caves | A Derelict revealed a hidden shortcut to "reach the base" 3556 | -5/Upper Caves | Entered Warlord 3697 | -5/Warlord | Discovered new exit (range 9) 3710 | -5/Warlord | Entered Proximity Caves 3734 | -4/Proximity Caves | Attracted the attention of an 0b10 checkpoint 3751 | -4/Proximity Caves | Build established: Scavenger-Tank 4117 | -4/Proximity Caves | Build established: Tank 4758 | -4/Proximity Caves | Learned Research stockpile data 4885 | -4/Proximity Caves | Learned location of Testing (-3) 5437 | -4/Proximity Caves | Discovered new exit (range 4) 5442 | -4/Proximity Caves | Entered Factory 5442 | -4/Factory | Evolved 2 slots: Power x2 5909 | -4/Factory | Lost 3 parts (1n1u1w) 6304 | -4/Factory | System corruption reached 10% 7028 | -4/Factory | Self-destructed Last Messages --------------- 06986_ K-01 Serf knocked back. 06987_ Acquired 25 matter. 06990_ Imp. Medium Treads destroyed. 06990_ Hpw. Shock Rifle destroyed. 06991_ Acquired Arm. Medium Treads. 06992_ K-01 Serf collects debris. 06993_ Hvy. Flak Cannon destroyed. 06995_ K-01 Serf collects debris. 07005_ U/=3EKS4MSXE:K7JKRZB=G>K 07008_ K-01 Serf collects debris. 07015_ U-05 Engineer builds a Door. Remote Datajacks cannot fire with other weapons in the same volley. 07022_ Imp. Fusion Compressor destroyed. 07023_ Jacked S-27 Virus... >>parse_system Reading system data... 07025_ Jacked S-27 Virus... 07025_ Command string: trojan 07025_ No effect. Map ----- +----------------------------------------------------+ | / #??### ###?????# # """ """ #??? | | # #??# ####### # #??? | | ####+##### " # #??? | | "T # #??? | | #### ############# ! # #??? | | #?# #???????????# ########### """T""" #??? | | #??# #???????????## ##?????????##############??? | | #### #????????????# #??????????????????????????? | | #### #????????????# #??????????????????????????? | | ## #????????????" #??????????????????????????? | | ## #????????????# #??????????????????????????? | | ## #????????????# #??????????????????????????? | | ## #????????????# #??????????????????????????? | | ## #????????????# #??????????????????????????? | | ## #????????? ??# #??????????????????????????? | | %" ##????????""?# #??????????????????????????? | | !## ##????????"" # #??????????????????????????? | | ## ##?????????" # #??????????????????????????? | | ## #??????????? + +??????????????????????????? | | ## #????????????# #??????????????????????????? | | ## #??????????###t ###########????????????????? | | ####[########???# # #????????????????? | | ??##!##=% ##### # ""#????????????????? | | ??##%##%* !! #g ""#????????????????? | | ?###%=*= !%! gs T"#????????????????? | | ??#####% !! * #@ ""#????????????????? | | ??????#!=*% ##### ! # ""#????????????????? | | ??????##%%=###??# #"" #????????????????? | | ???????#*[=###??#########"" #????????????????? | | ???????# ==#????????????#""" ! #????????????????? | | ???????# #????????????#""" #????????????????? | | ??????# ????????????#""" #????????????????? | | ?? ????# ?????????????? !#????????????????? | | ???????+ ??????????????#####????????????????? | | ?????? # ^ ??????????????????????????????????? | | ?????? ## ""??????????????????????????????????? | | ????? ??# "???????????????????????????????????? | | ?????#??# "???????????????????????????????????? | | ????????# ?????????????????????????????????????? | | ?????????????????????????????????????????????????? | | ?????????????????????????????????????????????????? | | ?????????????????????????????????????????????????? | | ?????????????????????????????????????????????????? | | ?????????????????????????????????????????????????? | | ?????????????????????????????????????????????????? | | ?????????????????????????????????????????????????? | | ?????????????????????????????????????????????????? | | ?????????????????????????????????????????????????? | | ?????????????????????????????????????????????????? | | ?????????????????????????????????????????????????? | +----------------------------------------------------+ Best States ------------- Heat Dissipation 99 Coolant Potential 130 Energy Generation 64 Energy Capacity 430 Matter Stores 300 Matter Capacity 300 Sight Range 18 Robot Scan Range 16 Terrain Scan Range 20 Terrain Scan Density 10 Power Amplification 20 Armor Coverage 375 Resistance: KI 20 Resistance: TH 25 Utility Shielding 33 Evasion (%) 55 Targeting Accuracy 5 Target Analysis 6 Recoil Reduction 4 Particle Charging 20 Item Schematics ----------------- None Robot Schematics ------------------ None Fabricated ------------ Nothing Alien Tech Used ----------------- None Achievements -------------- I Spy Challenges ------------ None Game ------ Seed HardenedStormHumpback Manual? 0 Play Time 02:20:33 Cumulative 21.7 hours Start 2024.05.24 @ 10:47:42 End 2024.05.24 @ 16:00:08 Sessions 3 Manual Loads 0 Difficulty Rogue Special Mode None Game No. 7 Rogue 6 Adventurer 1 Explorer 0 Win Type - Total 0 Types 0/0/0/0/0/0/0/0/0 Lore% 2 Gallery% 24 Achievement% 20 Wizard Run 0 Options --------- Layout 2 ASCII 0 Keyboard 0 Movement Mouse Keybinds 0 Fullscreen 1 Font 32/SmallcapsGlow Map View 50x44 Zoom Use 0% Tactical HUD 1 Map Filters NONE Filters NONE Steam 1 RUN: 653fc76c-42a6-4867-97fb-157285e9ddcb